[Event "Championnat du monde jeunes U12F"]
[Date "2024.11.16"]
[White "Zavivaeva, Kristina"]
[Black "Sri Darshini T"]
[WhiteElo "1775"]
[BlackElo "1681"]
[Round "2.15"]
[Result "1-0"]
[TimeControl "5400+30"]

1. b4 {[%clk 1:30:59]} 1... Nf6 {[%clk 1:27:10]} 2. Bb2 {[%clk 1:31:19]} 2... d5
{[%clk 1:25:05]} 3. Nf3 {[%clk 1:31:30]} 3... g6 {[%clk 1:23:02]} 4. e3 {[%clk
1:31:41]} 4... Bg7 {[%clk 1:23:17]} 5. c4 {[%clk 1:31:58]} 5... c6 {[%clk
1:19:33]} 6. Nc3 {[%clk 1:31:44]} 6... O-O {[%clk 1:18:35]} 7. Be2 {[%clk
1:31:33]} 7... Nbd7 {[%clk 1:16:40]} 8. O-O {[%clk 1:31:20]} 8... Re8 {[%clk
1:09:47]} 9. Qb3 {[%clk 1:30:32]} 9... Nb6 {[%clk 1:03:41]} 10. cxd5 {[%clk
1:29:12]} 10... cxd5 {[%clk 1:02:58]} 11. a4 {[%clk 1:28:02]} 11... Bg4 {[%clk
0:57:45]} 12. h3 {[%clk 1:21:52]} 12... Bxf3 {[%clk 0:54:51]} 13. Bxf3 {[%clk
1:22:14]} 13... e5 {[%clk 0:51:16]} 14. Rac1 {[%clk 1:17:10]} 14... Rc8 {[%clk
0:40:55]} 15. d3 {[%clk 1:13:26]} 15... e4 {[%clk 0:37:13]} 16. dxe4 {[%clk
1:13:19]} 16... dxe4 {[%clk 0:37:11]} 17. Rfd1 {[%clk 1:12:04]} 17... Qe7 {[%clk
0:37:18]} 18. Be2 {[%clk 1:12:06]} 18... Qe6 {[%clk 0:31:25]} 19. Qxe6 {[%clk
1:09:41]} 19... Rxe6 {[%clk 0:29:15]} 20. a5 {[%clk 1:06:13]} 20... Nbd7 {[%clk
0:26:38]} 21. Nxe4 {[%clk 1:04:19]} 21... Rxc1 {[%clk 0:24:16]} 22. Nxf6+ {[%clk
1:04:43]} 22... Bxf6 {[%clk 0:22:17]} 23. Bxc1 {[%clk 1:05:06]} 23... Ne5 {[%clk
0:22:09]} 24. b5 {[%clk 1:04:12]} 24... g5 {[%clk 0:17:56]} 25. f4 {[%clk
1:01:27]} 25... gxf4 {[%clk 0:18:12]} 26. exf4 {[%clk 1:01:52]} 26... Ng6 {[%clk
0:18:03]} 27. Bf3 {[%clk 0:59:57]} 27... Re7 {[%clk 0:16:58]} 28. Ba3 {[%clk
0:56:19]} 28... Rc7 {[%clk 0:15:37]} 29. b6 {[%clk 0:55:33]} 29... axb6 {[%clk
0:15:40]} 30. axb6 {[%clk 0:55:57]} 30... Rc4 {[%clk 0:15:08]} 31. Rd6 {[%clk
0:46:37]} 31... Bd4+ {[%clk 0:11:47]} 32. Kh2 {[%clk 0:46:09]} 32... Be3 {[%clk
0:09:14]} 33. g3 {[%clk 0:41:19]} 33... Rc2+ {[%clk 0:09:06]} 34. Bg2 {[%clk
0:40:46]} 34... Kg7 {[%clk 0:07:53]} 35. h4 {[%clk 0:28:49]} 35... h5 {[%clk
0:04:47]} 36. Kh1 {[%clk 0:22:12]} 36... Ra2 {[%clk 0:01:44]} 37. Bb4 {[%clk
0:22:12]} 37... Ra1+ {[%clk 0:01:27]} 38. Kh2 {[%clk 0:22:34]} 38... Rb1 {[%clk
0:00:44]} 39. Bc3+ {[%clk 0:22:33]} 39... Kh7 {[%clk 0:01:10]} 40. Rd7 {[%clk
0:21:43]} 40... Bg1+ {[%clk 0:01:10]} 41. Kh3 {[%clk 0:22:04]} 41... Kg8 {[%clk
0:00:32]} 42. Bd5 {[%clk 0:21:49]} 42... Nh8 {[%clk 0:00:36]} 43. Rd8+ {[%clk
0:22:13]} 43... Kh7 {[%clk 0:00:58]} 44. Rxh8+ {[%clk 0:22:33]} 1-0

[Variant "Standard"]
[Site "Europe Echecs"]

[Event "Championnat du monde jeunes U12F"]
[Date "2024.11.16"]
[White "Gailevska, Milana"]
[Black "Mozolevskaya, Tatyana Nik"]
[WhiteElo "1698"]
[BlackElo "1775"]
[Round "2.16"]
[Result "0-1"]
[TimeControl "5400+30"]

1. d4 {[%clk 1:30:58]} 1... g6 {[%clk 1:30:54]} 2. c4 {[%clk 1:31:18]} 2... Bg7
{[%clk 1:31:19]} 3. e4 {[%clk 1:31:40]} 3... d6 {[%clk 1:31:42]} 4. Nf3 {[%clk
1:30:08]} 4... Bg4 {[%clk 1:31:26]} 5. Be2 {[%clk 1:29:01]} 5... Nc6 {[%clk
1:24:21]} 6. d5 {[%clk 1:20:31]} 6... Bxf3 {[%clk 1:24:09]} 7. Bxf3 {[%clk
1:10:45]} 7... Nd4 {[%clk 1:24:15]} 8. Nc3 {[%clk 1:07:57]} 8... c5 {[%clk
1:21:42]} 9. dxc6 {[%clk 0:46:25]} 9... Nxc6 {[%clk 1:21:30]} 10. Be3 {[%clk
0:41:53]} 10... Nf6 {[%clk 1:17:43]} 11. O-O {[%clk 0:40:50]} 11... O-O {[%clk
1:15:52]} 12. Be2 {[%clk 0:39:11]} 12... Rc8 {[%clk 1:03:19]} 13. Rc1 {[%clk
0:36:44]} 13... Nd7 {[%clk 0:59:07]} 14. a3 {[%clk 0:33:10]} 14... Nc5 {[%clk
0:54:34]} 15. f3 {[%clk 0:28:21]} 15... Ne6 {[%clk 0:52:50]} 16. b4 {[%clk
0:25:23]} 16... Ncd4 {[%clk 0:51:40]} 17. Nd5 {[%clk 0:24:09]} 17... b6 {[%clk
0:48:25]} 18. f4 {[%clk 0:20:41]} 18... Nxe2+ {[%clk 0:46:17]} 19. Qxe2 {[%clk
0:20:25]} 19... Nd4 {[%clk 0:46:26]} 20. Qd1 {[%clk 0:17:54]} 20... Nc6 {[%clk
0:46:36]} 21. b5 {[%clk 0:11:47]} 21... Na5 {[%clk 0:45:24]} 22. Qe2 {[%clk
0:10:58]} 22... e6 {[%clk 0:42:33]} 23. Nb4 {[%clk 0:10:47]} 23... Qc7 {[%clk
0:42:47]} 24. Na6 {[%clk 0:10:39]} 24... Qb7 {[%clk 0:42:46]} 25. Bf2 {[%clk
0:10:36]} 25... Nb3 {[%clk 0:32:23]} 26. Rc2 {[%clk 0:09:42]} 26... Nd4 {[%clk
0:30:52]} 27. Bxd4 {[%clk 0:09:55]} 27... Bxd4+ {[%clk 0:31:20]} 28. Kh1 {[%clk
0:10:16]} 28... Bc5 {[%clk 0:31:44]} 29. Nxc5 {[%clk 0:09:29]} 29... Rxc5 {[%clk
0:32:07]} 30. Qd3 {[%clk 0:08:35]} 30... Rd8 {[%clk 0:32:24]} 31. f5 {[%clk
0:08:15]} 31... exf5 {[%clk 0:30:17]} 32. exf5 {[%clk 0:08:37]} 32... d5 {[%clk
0:30:31]} 33. f6 {[%clk 0:08:14]} 33... h5 {[%clk 0:28:47]} 34. Re1 {[%clk
0:05:33]} 34... Qc8 {[%clk 0:28:02]} 35. Qd2 {[%clk 0:03:19]} 35... Kh7 {[%clk
0:28:02]} 36. Re7 {[%clk 0:03:21]} 36... Rd7 {[%clk 0:28:20]} 37. Qe3 {[%clk
0:02:52]} 37... d4 {[%clk 0:26:44]} 38. Qe4 {[%clk 0:01:49]} 38... d3 {[%clk
0:25:13]} 39. Rxd7 {[%clk 0:01:02]} 39... Qxd7 {[%clk 0:25:23]} 40. Rd2 {[%clk
0:01:20]} 40... Rf5 {[%clk 0:24:30]} 41. g3 {[%clk 0:01:08]} 41... Rxf6 {[%clk
0:24:48]} 42. Rxd3 {[%clk 0:01:24]} 42... Qh3 {[%clk 0:24:57]} 43. Rf3 {[%clk
0:01:04]} 43... Rxf3 {[%clk 0:25:20]} 44. Qxf3 {[%clk 0:01:30]} 44... Qe6 {[%clk
0:25:46]} 45. Qd3 {[%clk 0:00:49]} 45... Qh3 {[%clk 0:22:33]} 46. Kg1 {[%clk
0:00:54]} 46... h4 {[%clk 0:22:26]} 47. Qf3 {[%clk 0:00:39]} 47... Kg7 {[%clk
0:22:26]} 48. Qf1 {[%clk 0:00:54]} 48... Qxf1+ {[%clk 0:18:52]} 49. Kxf1 {[%clk
0:01:19]} 49... hxg3 {[%clk 0:19:20]} 50. hxg3 {[%clk 0:01:14]} 50... Kf6 {[%clk
0:19:47]} 51. Kf2 {[%clk 0:01:29]} 51... Ke5 {[%clk 0:20:15]} 52. Ke3 {[%clk
0:01:44]} 52... f5 {[%clk 0:20:11]} 53. a4 {[%clk 0:01:51]} 53... g5 {[%clk
0:20:32]} 54. Kd3 {[%clk 0:00:36]} 54... f4 {[%clk 0:20:48]} 55. gxf4+ {[%clk
0:01:04]} 55... gxf4 {[%clk 0:20:22]} 56. c5 {[%clk 0:01:06]} 56... bxc5 {[%clk
0:20:07]} 57. a5 {[%clk 0:01:03]} 57... Kd5 {[%clk 0:20:27]} 58. a6 {[%clk
0:01:15]} 58... c4+ {[%clk 0:20:49]} 59. Kc3 {[%clk 0:01:10]} 59... Kc5 {[%clk
0:20:58]} 60. b6 {[%clk 0:01:24]} 60... Kxb6 {[%clk 0:21:26]} 61. Kxc4 {[%clk
0:01:46]} 61... Kxa6 {[%clk 0:21:39]} 62. Kd4 {[%clk 0:02:07]} 62... Kb5 {[%clk
0:21:55]} 63. Ke4 {[%clk 0:02:30]} 63... Kb4 {[%clk 0:22:20]} 64. Kxf4 {[%clk
0:02:47]} 64... a5 {[%clk 0:22:44]} 65. Ke3 {[%clk 0:03:10]} 65... Kc3 {[%clk
0:22:53]} 66. Ke2 {[%clk 0:03:14]} 66... Kc2 {[%clk 0:23:10]} 67. Ke3 {[%clk
0:03:28]} 67... a4 {[%clk 0:23:36]} 68. Kd4 {[%clk 0:03:48]} 68... a3 {[%clk
0:24:02]} 0-1

[Variant "Standard"]
[Site "Europe Echecs"]

[Event "Championnat du monde jeunes U12F"]
[Date "2024.11.16"]
[White "Siddhi Rao"]
[Black "Aadya Ranganath"]
[WhiteElo "1677"]
[BlackElo "1753"]
[Round "2.18"]
[Result "1-0"]
[TimeControl "5400+30"]

1. e4 {[%clk 1:30:57]} 1... e5 {[%clk 1:30:40]} 2. Nf3 {[%clk 1:31:22]} 2... Nc6
{[%clk 1:31:06]} 3. Bc4 {[%clk 1:31:47]} 3... Bc5 {[%clk 1:31:25]} 4. c3 {[%clk
1:32:12]} 4... Nf6 {[%clk 1:31:42]} 5. d4 {[%clk 1:32:37]} 5... exd4 {[%clk
1:32:05]} 6. e5 {[%clk 1:33:01]} 6... d5 {[%clk 1:32:27]} 7. Be2 {[%clk
1:33:27]} 7... Ne4 {[%clk 1:29:11]} 8. cxd4 {[%clk 1:33:50]} 8... Bb4+ {[%clk
1:27:58]} 9. Bd2 {[%clk 1:34:08]} 9... Bxd2+ {[%clk 1:25:07]} 10. Nbxd2 {[%clk
1:34:31]} 10... O-O {[%clk 1:23:42]} 11. O-O {[%clk 1:34:49]} 11... f6 {[%clk
1:19:47]} 12. Bb5 {[%clk 1:34:37]} 12... Nxd2 {[%clk 1:10:20]} 13. Qxd2 {[%clk
1:33:53]} 13... Bg4 {[%clk 1:08:48]} 14. Bxc6 {[%clk 1:26:10]} 14... bxc6 {[%clk
1:08:40]} 15. Ne1 {[%clk 1:25:28]} 15... fxe5 {[%clk 1:02:51]} 16. dxe5 {[%clk
1:25:29]} 16... Qe7 {[%clk 0:54:25]} 17. f4 {[%clk 1:19:46]} 17... Qc5+ {[%clk
0:53:09]} 18. Kh1 {[%clk 1:19:23]} 18... Qb5 {[%clk 0:49:13]} 19. Nf3 {[%clk
1:11:25]} 19... Bxf3 {[%clk 0:43:35]} 20. Rxf3 {[%clk 1:11:27]} 20... Rab8
{[%clk 0:40:24]} 21. b3 {[%clk 1:09:06]} 21... Qb4 {[%clk 0:40:20]} 22. Qf2
{[%clk 1:01:49]} 22... Qe4 {[%clk 0:37:16]} 23. Re1 {[%clk 0:45:47]} 23... Qf5
{[%clk 0:34:58]} 24. Qxa7 {[%clk 0:40:38]} 24... Rb4 {[%clk 0:31:27]} 25. Ref1
Qd7 {[%clk 0:27:00]} 26. Qf2 {[%clk 0:29:26]} 26... Re4 {[%clk 0:24:27]} 27. Qg3
{[%clk 0:26:46]} 27... d4 {[%clk 0:18:24]} 28. f5 {[%clk 0:23:18]} 28... Qd5
{[%clk 0:14:07]} 29. e6 {[%clk 0:19:41]} 29... Qe5 {[%clk 0:12:33]} 30. Qxe5
{[%clk 0:13:02]} 30... Rxe5 {[%clk 0:12:57]} 31. g4 {[%clk 0:12:31]} 31... g6
{[%clk 0:10:21]} 32. fxg6 {[%clk 0:04:00]} 32... Rxf3 {[%clk 0:10:39]} 33. gxh7+
{[%clk 0:04:21]} 33... Kxh7 {[%clk 0:10:26]} 34. Rxf3 {[%clk 0:04:46]} 34...
Rxe6 {[%clk 0:10:44]} 35. b4 {[%clk 0:02:27]} 35... Kg6 {[%clk 0:10:03]} 36. Kg2
{[%clk 0:01:00]} 36... Re5 {[%clk 0:08:34]} 37. Rd3 {[%clk 0:00:48]} 37... Rd5
{[%clk 0:06:12]} 38. Kg3 {[%clk 0:00:52]} 38... Rd8 {[%clk 0:04:43]} 39. h4
{[%clk 0:00:56]} 39... Kh6 {[%clk 0:03:44]} 40. Kf4 {[%clk 0:00:51]} 40... Rf8+
{[%clk 0:04:04]} 41. Ke5 {[%clk 0:00:54]} 41... Rf2 {[%clk 0:03:39]} 42. a3
{[%clk 0:01:07]} 42... Rh2 {[%clk 0:03:45]} 43. Rxd4 {[%clk 0:01:27]} 43... Rxh4
{[%clk 0:04:02]} 44. g5+ {[%clk 0:01:53]} 44... Kxg5 {[%clk 0:04:28]} 45. Rxh4
{[%clk 0:02:19]} 45... Kxh4 {[%clk 0:04:50]} 46. a4 {[%clk 0:02:36]} 46... Kg5
{[%clk 0:05:12]} 47. a5 {[%clk 0:03:02]} 47... c5 {[%clk 0:05:35]} 48. bxc5
{[%clk 0:03:29]} 48... c6 {[%clk 0:06:02]} 49. a6 {[%clk 0:03:54]} 49... Kg4
{[%clk 0:06:30]} 50. a7 {[%clk 0:04:20]} 50... Kg5 {[%clk 0:06:55]} 51. a8=Q
{[%clk 0:04:45]} 51... Kg4 {[%clk 0:07:21]} 52. Qg8+ {[%clk 0:05:06]} 52... Kf3
{[%clk 0:07:48]} 53. Qg5 {[%clk 0:05:29]} 53... Ke2 {[%clk 0:08:14]} 54. Qg3
{[%clk 0:05:52]} 54... Kd2 {[%clk 0:08:41]} 55. Kd4 {[%clk 0:06:17]} 55... Kc2
{[%clk 0:08:55]} 56. Qc3+ {[%clk 0:06:40]} 56... Kd1 {[%clk 0:09:05]} 57. Qb2
{[%clk 0:07:05]} 57... Ke1 {[%clk 0:09:32]} 58. Ke3 {[%clk 0:07:29]} 58... Kf1
{[%clk 0:09:57]} 59. Qf2# {[%clk 0:07:56]} 1-0

[Variant "Standard"]
[Site "Europe Echecs"]

[Event "Championnat du monde jeunes U12F"]
[Date "2024.11.16"]
[White "Mrad, Anahid"]
[Black "Hanya Shah"]
[WhiteElo "1558"]
[BlackElo "1888"]
[Round "2.19"]
[Result "0-1"]
[TimeControl "5400+30"]

1. e4 {[%clk 1:30:57]} 1... Nf6 {[%clk 1:30:49]} 2. e5 {[%clk 1:31:18]} 2... Nd5
{[%clk 1:31:13]} 3. d4 {[%clk 1:31:37]} 3... d6 {[%clk 1:31:38]} 4. Bc4 {[%clk
1:31:56]} 4... Nb6 {[%clk 1:30:39]} 5. Bb3 {[%clk 1:32:11]} 5... dxe5 {[%clk
1:29:43]} 6. Qh5 {[%clk 1:32:30]} 6... e6 {[%clk 1:26:38]} 7. dxe5 {[%clk
1:32:44]} 7... c5 {[%clk 1:23:15]} 8. c4 {[%clk 1:30:05]} 8... Qd3 {[%clk
1:12:14]} 9. Nd2 {[%clk 1:25:56]} 9... Bd7 {[%clk 1:08:34]} 10. Ne2 {[%clk
1:20:49]} 10... Bc6 {[%clk 1:03:43]} 11. Nf4 {[%clk 1:15:37]} 11... Qd7 {[%clk
0:47:49]} 12. O-O {[%clk 1:09:22]} 12... g6 {[%clk 0:46:26]} 13. Qg5 {[%clk
1:07:29]} 13... Qe7 {[%clk 0:44:42]} 14. Qg3 {[%clk 1:05:19]} 14... N8d7 {[%clk
0:43:26]} 15. Re1 {[%clk 1:01:20]} 15... Bg7 {[%clk 0:39:41]} 16. Nd3 {[%clk
0:54:29]} 16... O-O {[%clk 0:29:31]} 17. Nf3 {[%clk 0:49:05]} 17... Bxf3 {[%clk
0:21:40]} 18. Qxf3 {[%clk 0:48:27]} 18... Rab8 {[%clk 0:21:31]} 19. a4 f6 {[%clk
0:13:26]} 20. exf6 {[%clk 0:41:40]} 20... Bxf6 {[%clk 0:13:00]} 21. Qg4 {[%clk
0:35:31]} 21... Rbe8 {[%clk 0:11:15]} 22. Qe4 {[%clk 0:31:43]} 22... Nb8 {[%clk
0:09:18]} 23. Be3 {[%clk 0:29:53]} 23... Na6 {[%clk 0:09:22]} 24. a5 {[%clk
0:28:16]} 24... Nc8 {[%clk 0:07:56]} 25. Bh6 {[%clk 0:25:35]} 25... Bg7 {[%clk
0:06:31]} 26. Bxg7 {[%clk 0:24:27]} 26... Qxg7 {[%clk 0:06:30]} 27. Ba4 {[%clk
0:23:28]} 27... Re7 {[%clk 0:06:40]} 28. Re2 {[%clk 0:17:22]} 28... Nd6 {[%clk
0:06:24]} 29. Qg4 {[%clk 0:16:35]} 29... Nf5 {[%clk 0:04:54]} 30. Rae1 {[%clk
0:14:31]} 30... Nd4 {[%clk 0:04:15]} 31. Re4 {[%clk 0:13:38]} 31... b6 {[%clk
0:03:52]} 32. b4 {[%clk 0:12:40]} 32... Qf6 {[%clk 0:02:10]} 33. f3 {[%clk
0:08:17]} 33... Rd8 {[%clk 0:01:11]} 34. axb6 {[%clk 0:06:04]} 34... axb6 {[%clk
0:01:25]} 35. bxc5 {[%clk 0:06:07]} 35... bxc5 {[%clk 0:01:37]} 36. Nf4 {[%clk
0:06:14]} 36... Nc7 {[%clk 0:01:14]} 37. h4 {[%clk 0:05:50]} 37... Qf5 {[%clk
0:00:48]} 38. Qg3 {[%clk 0:05:47]} 38... Rf8 {[%clk 0:00:40]} 39. h5 {[%clk
0:05:08]} 39... Rg7 {[%clk 0:00:40]} 40. h6 {[%clk 0:04:33]} 40... Re7 {[%clk
0:00:45]} 41. Nd3 {[%clk 0:03:00]} 41... Ra8 {[%clk 0:00:42]} 42. Nb2 {[%clk
0:02:01]} 42... Rb8 {[%clk 0:00:37]} 43. Nd3 {[%clk 0:02:16]} 43... Ra8 {[%clk
0:00:57]} 44. Nb2 {[%clk 0:02:34]} 44... Qf6 {[%clk 0:01:09]} 45. Rf4 {[%clk
0:02:11]} 45... Nf5 {[%clk 0:00:42]} 46. Qf2 {[%clk 0:02:21]} 46... e5 {[%clk
0:00:35]} 47. Rfe4 {[%clk 0:02:29]} 47... Nd4 {[%clk 0:00:50]} 48. f4 {[%clk
0:01:38]} 48... Rf8 {[%clk 0:00:40]} 49. Nd3 {[%clk 0:01:52]} 49... Ne8 {[%clk
0:00:34]} 50. Nxc5 {[%clk 0:01:44]} 50... Nd6 {[%clk 0:00:40]} 51. Rxe5 {[%clk
0:00:41]} 51... Rxe5 {[%clk 0:00:56]} 52. Rxe5 {[%clk 0:01:05]} 52... Qxf4
{[%clk 0:01:18]} 53. Qxf4 {[%clk 0:00:53]} 53... Rxf4 {[%clk 0:01:21]} 54. g3
{[%clk 0:00:45]} 54... Nf3+ {[%clk 0:01:14]} 55. Kg2 {[%clk 0:00:47]} 55... Nxe5
{[%clk 0:01:35]} 56. gxf4 {[%clk 0:01:03]} 56... Nexc4 {[%clk 0:01:47]} 57. Bb3
{[%clk 0:01:08]} 57... Kf7 {[%clk 0:01:41]} 58. Bxc4+ {[%clk 0:01:21]} 58...
Nxc4 {[%clk 0:02:05]} 59. Kf3 {[%clk 0:01:41]} 59... Nd6 {[%clk 0:02:19]} 60.
Kg4 {[%clk 0:01:30]} 60... Kf6 {[%clk 0:01:34]} 61. Nd7+ {[%clk 0:01:25]} 61...
Ke7 {[%clk 0:01:37]} 62. Ne5 {[%clk 0:01:46]} 62... Nf7 {[%clk 0:00:58]} 63.
Nxg6+ {[%clk 0:00:39]} 63... hxg6 {[%clk 0:01:04]} 64. h7 {[%clk 0:01:03]} 64...
Kf6 {[%clk 0:01:23]} 65. Kf3 {[%clk 0:00:41]} 65... Kg7 {[%clk 0:01:13]} 66. Kg4
{[%clk 0:00:51]} 66... Kxh7 {[%clk 0:01:06]} 67. f5 {[%clk 0:01:15]} 67... Nh6+
{[%clk 0:01:32]} 68. Kf4 {[%clk 0:01:37]} 68... gxf5 {[%clk 0:01:43]} 69. Kg3
{[%clk 0:01:50]} 69... Kg6 {[%clk 0:02:09]} 70. Kf4 {[%clk 0:02:06]} 70... Kf6
{[%clk 0:02:33]} 71. Kf3 {[%clk 0:02:23]} 71... Ke5 {[%clk 0:02:50]} 72. Ke3
{[%clk 0:02:44]} 72... f4+ {[%clk 0:03:11]} 73. Kf3 {[%clk 0:03:06]} 73... Kf5
{[%clk 0:03:37]} 74. Kf2 {[%clk 0:03:24]} 74... Ke4 {[%clk 0:04:02]} 75. Ke2
{[%clk 0:03:37]} 75... f3+ {[%clk 0:04:18]} 76. Kf2 {[%clk 0:03:54]} 76... Kf4
{[%clk 0:04:43]} 77. Kf1 {[%clk 0:04:13]} 77... Ke3 {[%clk 0:04:57]} 78. Ke1
{[%clk 0:04:33]} 78... f2+ {[%clk 0:04:55]} 79. Kf1 {[%clk 0:04:57]} 79... Nf7
{[%clk 0:05:16]} 80. Kg2 {[%clk 0:05:13]} 80... Ke2 {[%clk 0:05:34]} 0-1

[Variant "Standard"]
[Site "Europe Echecs"]

[Event "Championnat du monde jeunes U12F"]
[Date "2024.11.16"]
[White "Qiu, Laurie"]
[Black "Liu, Jingyu"]
[WhiteElo "1994"]
[BlackElo "1680"]
[Round "2.20"]
[Result "1-0"]
[TimeControl "5400+30"]

1. e4 {[%clk 1:30:59]} 1... c6 {[%clk 1:30:53]} 2. d4 {[%clk 1:31:25]} 2... d5
{[%clk 1:31:18]} 3. exd5 {[%clk 1:31:51]} 3... cxd5 {[%clk 1:31:44]} 4. Bd3
{[%clk 1:32:14]} 4... Nc6 {[%clk 1:32:07]} 5. c3 {[%clk 1:32:40]} 5... Nf6
{[%clk 1:32:31]} 6. Bf4 {[%clk 1:33:04]} 6... g6 {[%clk 1:32:55]} 7. h3 {[%clk
1:33:02]} 7... Bf5 {[%clk 1:33:15]} 8. Bxf5 {[%clk 1:30:51]} 8... gxf5 {[%clk
1:33:37]} 9. Nf3 {[%clk 1:29:48]} 9... e6 {[%clk 1:33:41]} 10. Nbd2 {[%clk
1:24:22]} 10... Bd6 {[%clk 1:33:11]} 11. Ne5 {[%clk 1:17:46]} 11... Qc7 {[%clk
1:30:28]} 12. Ndf3 {[%clk 1:15:50]} 12... Ne4 {[%clk 1:17:06]} 13. Qe2 {[%clk
1:02:59]} 13... f6 {[%clk 1:08:54]} 14. Nxc6 {[%clk 1:02:49]} 14... Qxc6 {[%clk
1:08:45]} 15. Bxd6 {[%clk 1:02:16]} 15... Qxd6 {[%clk 1:09:03]} 16. Nd2 {[%clk
0:56:25]} 16... h5 {[%clk 1:00:01]} 17. O-O-O {[%clk 0:51:56]} 17... O-O-O
{[%clk 0:57:23]} 18. g4 {[%clk 0:47:21]} 18... Nxd2 {[%clk 0:55:52]} 19. Kxd2
{[%clk 0:43:37]} 19... fxg4 {[%clk 0:43:13]} 20. Rde1 {[%clk 0:33:53]} 20...
Qf4+ {[%clk 0:40:32]} 21. Kc2 Qf5+ {[%clk 0:37:06]} 22. Kc1 {[%clk 0:25:58]}
22... Rhe8 {[%clk 0:36:08]} 23. hxg4 {[%clk 0:25:19]} 23... hxg4 {[%clk
0:36:22]} 24. Qe3 {[%clk 0:16:10]} 24... Rd7 {[%clk 0:32:14]} 25. Rh6 {[%clk
0:13:36]} 25... Rh7 {[%clk 0:23:36]} 26. Rxh7 {[%clk 0:12:22]} 26... Qxh7 {[%clk
0:21:02]} 27. Qf4 {[%clk 0:12:33]} 27... f5 {[%clk 0:20:03]} 28. Qd6 {[%clk
0:12:27]} 28... Qc7 {[%clk 0:13:19]} 29. Qa3 {[%clk 0:06:41]} 29... Qf4+ {[%clk
0:08:31]} 30. Kb1 {[%clk 0:07:03]} 30... a6 {[%clk 0:06:08]} 31. Qc5+ {[%clk
0:06:08]} 31... Qc7 {[%clk 0:06:16]} 32. Qa7 {[%clk 0:05:26]} 32... Kd7 {[%clk
0:05:22]} 33. Rh1 {[%clk 0:04:48]} 33... Kd6 {[%clk 0:02:50]} 34. Kc2 {[%clk
0:03:44]} 34... a5 {[%clk 0:00:40]} 35. a3 {[%clk 0:01:28]} 35... b6 {[%clk
0:00:55]} 36. Qa6 {[%clk 0:01:47]} 36... Re7 {[%clk 0:00:51]} 37. Rh8 {[%clk
0:01:21]} 37... Rd7 {[%clk 0:00:51]} 38. Qa8 {[%clk 0:01:10]} 38... Qb7 {[%clk
0:00:48]} 39. Qf8+ {[%clk 0:01:30]} 39... Re7 {[%clk 0:00:52]} 40. Rh7 {[%clk
0:01:14]} 40... Qd7 {[%clk 0:01:01]} 41. Rh8 {[%clk 0:01:24]} 41... Qc7 {[%clk
0:01:10]} 42. Qf6 {[%clk 0:01:05]} 42... Kc6 {[%clk 0:01:13]} 43. Qf8 {[%clk
0:01:14]} 43... Kd6 {[%clk 0:01:35]} 44. b4 {[%clk 0:00:53]} 44... axb4 {[%clk
0:02:01]} 45. axb4 {[%clk 0:01:18]} 45... Qa7 {[%clk 0:01:41]} 46. Qc8 {[%clk
0:00:48]} 46... Qa2+ {[%clk 0:00:59]} 47. Kd1 {[%clk 0:00:45]} 47... Qb1+ {[%clk
0:01:24]} 48. Ke2 {[%clk 0:01:04]} 48... Qc2+ {[%clk 0:01:36]} 49. Kf1 {[%clk
0:01:21]} 49... Qd3+ {[%clk 0:01:01]} 50. Kg1 {[%clk 0:01:29]} 50... Qb5 {[%clk
0:00:31]} 51. Rd8+ {[%clk 0:00:50]} 51... Rd7 {[%clk 0:00:45]} 52. Qb8+ {[%clk
0:01:10]} 52... Ke7 {[%clk 0:00:51]} 53. Re8+ {[%clk 0:01:22]} 53... Kf6 {[%clk
0:01:14]} 54. Qe5+ {[%clk 0:01:41]} 54... Kg5 {[%clk 0:00:47]} 55. Rg8+ {[%clk
0:01:56]} 55... Kh6 {[%clk 0:00:31]} 56. Qh2# {[%clk 0:02:14]} 1-0

[Variant "Standard"]
[Site "Europe Echecs"]

[Event "Championnat du monde jeunes U12F"]
[Date "2024.11.16"]
[White "Chichinadze, Anastasia"]
[Black "Venskaya, Nika"]
[WhiteElo "1682"]
[BlackElo "1871"]
[Round "2.21"]
[Result "0-1"]
[TimeControl "5400+30"]

1. e4 {[%clk 1:30:58]} 1... d6 {[%clk 1:30:53]} 2. d4 {[%clk 1:31:19]} 2... Nf6
{[%clk 1:31:17]} 3. Nc3 {[%clk 1:31:13]} 3... g6 {[%clk 1:31:34]} 4. Nf3 {[%clk
1:28:13]} 4... Bg7 {[%clk 1:31:54]} 5. Bf4 {[%clk 1:26:54]} 5... O-O {[%clk
1:31:46]} 6. Be2 {[%clk 1:24:54]} 6... c6 {[%clk 1:31:15]} 7. O-O {[%clk
1:25:02]} 7... Nbd7 {[%clk 1:19:00]} 8. Qd2 {[%clk 1:18:37]} 8... Nh5 {[%clk
1:13:07]} 9. Bh6 {[%clk 1:16:53]} 9... e5 {[%clk 1:12:33]} 10. Bxg7 {[%clk
1:14:08]} 10... Kxg7 {[%clk 1:12:34]} 11. dxe5 {[%clk 1:13:45]} 11... dxe5
{[%clk 1:12:53]} 12. Qd6 {[%clk 1:06:57]} 12... Qf6 {[%clk 1:11:34]} 13. Qxf6+
{[%clk 1:00:50]} 13... Kxf6 {[%clk 1:06:32]} 14. Rad1 {[%clk 0:56:22]} 14... Nb6
{[%clk 1:04:25]} 15. Rd6+ {[%clk 0:51:44]} 15... Ke7 {[%clk 1:03:47]} 16. Rfd1
{[%clk 0:52:04]} 16... f6 {[%clk 1:03:07]} 17. g3 {[%clk 0:48:17]} 17... Ng7
{[%clk 0:59:52]} 18. b4 {[%clk 0:39:42]} 18... Ne6 {[%clk 0:51:24]} 19. R6d2
{[%clk 0:37:02]} 19... Nc7 {[%clk 0:44:36]} 20. Kg2 {[%clk 0:31:05]} 20... Be6
{[%clk 0:39:46]} 21. a3 {[%clk 0:28:38]} 21... Bg4 {[%clk 0:34:08]} 22. h3
{[%clk 0:22:56]} 22... Bxf3+ {[%clk 0:33:22]} 23. Bxf3 {[%clk 0:23:19]} 23...
Ne6 {[%clk 0:33:34]} 24. Be2 {[%clk 0:16:04]} 24... f5 {[%clk 0:30:54]} 25. b5
{[%clk 0:11:07]} 25... f4 {[%clk 0:19:52]} 26. f3 {[%clk 0:07:51]} 26... fxg3
{[%clk 0:17:13]} 27. Kxg3 {[%clk 0:08:10]} 27... Nd4 {[%clk 0:15:25]} 28. a4
{[%clk 0:07:11]} 28... cxb5 {[%clk 0:13:30]} 29. axb5 {[%clk 0:05:24]} 29...
Rac8 {[%clk 0:12:34]} 30. Nd5+ {[%clk 0:04:30]} 30... Nxd5 {[%clk 0:12:55]} 31.
exd5 {[%clk 0:04:56]} 31... Rxc2 {[%clk 0:12:19]} 32. Rxc2 {[%clk 0:05:02]}
32... Nxc2 {[%clk 0:12:32]} 33. Rd3 {[%clk 0:04:15]} 33... Nd4 {[%clk 0:12:13]}
34. Kf2 {[%clk 0:04:02]} 34... Nxb5 {[%clk 0:06:38]} 35. Re3 {[%clk 0:04:03]}
35... Nd4 {[%clk 0:07:00]} 36. Rxe5+ {[%clk 0:04:28]} 36... Kd6 {[%clk 0:07:26]}
37. Re4 {[%clk 0:04:43]} 37... Nxe2 {[%clk 0:07:00]} 38. Kxe2 {[%clk 0:04:33]}
38... Rf5 0-1

[Variant "Standard"]
[Site "Europe Echecs"]